fUSD/lending_fUSD_20260225
["ID","MTS","AMOUNT","RATE_DAILY","PERIOD"]
[406645219,1772025051389,-186.93963,0.00013699,2]
[406645220,1772025051399,-186.93963,0.00013699,2]
[406645221,1772025051408,-186.93963,0.00013699,2]
[406645222,1772025051418,-186.93963,0.00013699,2]
[406645223,1772025051427,-186.93963,0.00013699,2]
[406645224,1772025051436,-186.93963,0.00013699,2]
[406645225,1772025051451,-186.93963,0.00013699,2]
[406645226,1772025051462,-186.93963,0.00013699,2]
[406645227,1772025051472,-186.93963,0.00013699,2]
[406645228,1772025051481,-186.93963,0.00013699,2]
[406645229,1772025051491,-186.93963,0.00013699,2]
[406645230,1772025051501,-186.93963,0.00013699,2]
[406645231,1772025051511,-186.93963,0.00013699,2]
[406645232,1772025051522,-186.93963,0.00013699,2]
[406645233,1772025051532,-186.93963,0.00013699,2]
[406645234,1772025051542,-186.93963,0.00013699,2]
[406645235,1772025051552,-186.93963,0.00013699,2]
[406645236,1772025051561,-186.93963,0.00013699,2]
[406645237,1772025051571,-186.93963,0.00013699,2]
[406645238,1772025051581,-186.939624,0.00013699,2]
[406645239,1772025051591,-153.152232,0.00013699,2]
[406645240,1772025051601,-151.0,0.00013699,2]
[406645241,1772025051613,-151.0,0.00013699,2]
[406645242,1772025051623,-151.0,0.00013699,2]
[406645243,1772025051632,-151.0,0.00013699,2]
[406645244,1772025051642,-211.224642,0.00013699,2]
[406645245,1772025051655,-501.69888136,0.00013699,2]
[406645246,1772025051665,-501.23705167,0.00013699,2]
[406645247,1772025051675,-500.0,0.00013699,2]
[406645248,1772025051684,-500.0,0.00013699,2]
[406645249,1772025051695,-500.0,0.00013699,2]
[406645250,1772025051706,-500.0,0.00013699,2]
[406645251,1772025051716,-500.0,0.00013699,2]
[406645252,1772025051726,-500.0,0.00013699,2]
[406645253,1772025051735,-500.0,0.00013699,2]
[406645254,1772025051746,-500.0,0.00013699,2]
[406645255,1772025051756,-500.0,0.00013699,2]
[406645256,1772025051766,-500.0,0.00013699,2]
[406645257,1772025051776,-500.0,0.00013699,2]
[406645258,1772025051786,-501.13092292,0.00013699,2]
[406645259,1772025051796,-152.0,0.00013699,2]
[406645260,1772025051806,-151.34786106,0.00013699,2]
[406645261,1772025051817,-152.0,0.00013699,2]
[406645262,1772025051827,-152.0,0.00013699,2]
[406645263,1772025051837,-500.0,0.00013699,2]
[406645264,1772025051847,-500.0,0.00013699,2]
[406645265,1772025051857,-500.0,0.00013699,2]
[406645266,1772025051867,-500.0,0.00013699,2]
[406645267,1772025051876,-505.28465419,0.00013699,2]
[406645268,1772025051886,-504.75046136,0.00013699,2]
[406645269,1772025051895,-500.0,0.00013699,2]
[406645270,1772025051905,-501.51200061,0.00013699,2]
[406645271,1772025051915,-194.70355038,0.00013699,2]
[406645272,1772025051926,-500.0,0.00013699,2]
[406645273,1772025051935,-500.0,0.00013699,2]
[406645274,1772025051946,-500.0,0.00013699,2]
[406645275,1772025051955,-500.0,0.00013699,2]
[406645276,1772025051966,-500.0,0.00013699,2]
[406645277,1772025051976,-500.0,0.00013699,2]
[406645278,1772025051985,-554.79258517,0.00013699,2]
[406645279,1772025051996,-500.0,0.00013699,2]
[406645280,1772025052006,-500.0,0.00013699,2]
[406645281,1772025052016,-500.0,0.00013699,2]
[406645282,1772025052029,-506.7961227,0.00013699,2]
[406645283,1772025052038,-500.0,0.00013699,2]
[406645284,1772025052048,-500.82123681,0.00013699,2]
[406645285,1772025052059,-327.89337357,0.00013699,2]
[406645286,1772025052069,-501.91260514,0.00013699,2]
[406645287,1772025052079,-500.0,0.00013699,2]
[406645288,1772025052089,-563.8305721,0.00013699,2]
[406645289,1772025052099,-500.0,0.00013699,2]
[406645290,1772025052110,-500.0,0.00013699,2]
[406645291,1772025052119,-503.24456333,0.00013699,2]
[406645292,1772025052130,-310.78338987,0.00013699,2]
[406645293,1772025052141,-401.85178282,0.00013699,2]
[406645294,1772025052478,-102.35200681,0.00013699,2]
[406645295,1772025052489,-155.0,0.00013714,2]
[406645296,1772025052501,-259.44,0.00013762,2]
[406645297,1772025052511,-183.73,0.00013817,2]
[406645298,1772025052523,-200.0,0.00013836,2]
[406645299,1772025052533,-476.4778008,0.00014,2]
[406645300,1772025052545,-951.29843663,0.00014,2]
[406645301,1772025052556,-572.22376257,0.00014,2]
[406645302,1772025052566,-11765.05049579,0.00014085,2]
[406645303,1772025052596,-258.93622724,0.00014085,2]
[406645304,1772025052607,-569.0,0.00014165,2]
[406645305,1772025052617,-269.0,0.00014165,2]
[406645306,1772025052627,-183.73,0.0001421,2]
[406645307,1772025052637,-321.77575843,0.00014219,30]
[406645308,1772025052647,-495.71,0.00014367,2]
[406645309,1772025052656,-397.46800771,0.00014384,2]
[406645310,1772025052668,-428.87199229,0.00014384,2]
[406645311,1772025052678,-200.0,0.00014384,2]
[406645312,1772025052688,-251.0,0.0001445,7]
[406645313,1772025052699,-150.0,0.00014648,2]
[406645314,1772025052709,-150.0,0.00014648,2]
[406645315,1772025052719,-150.0,0.00014648,2]
[406645316,1772025052729,-150.0,0.00014648,2]
[406645317,1772025052738,-150.0,0.00014648,2]
[406645318,1772025052748,-150.0,0.00014648,2]
[406645319,1772025052757,-150.0,0.00014648,2]
[406645320,1772025052768,-150.0,0.00014648,2]
[406645321,1772025052777,-1340.0,0.00014648,2]
[406645322,1772025052786,-618.0,0.00014648,2]
[406645323,1772025052796,-1000.0,0.00014748,2]
[406645324,1772025052805,-359.29159036,0.00014895,2]
[406645325,1772025052816,-1074.81983811,0.00014896,2]
[406645326,1772025052825,-1116.06419167,0.00014896,2]
[406645327,1772025052834,-1054.0118949,0.00014896,2]
[406645328,1772025052843,-1020.93881398,0.00014896,2]
[406645329,1772025052863,-1025.52440178,0.00014896,2]
[406645330,1772025052873,-1018.0285885,0.00014896,2]
[406645331,1772025052882,-1030.9501447,0.00014896,2]
[406645332,1772025052892,-1013.77631299,0.00014896,2]
[406645333,1772025052901,-1058.12121447,0.00014896,2]
[406645334,1772025052910,-1110.69451923,0.00014896,2]
[406645335,1772025052920,-1090.21791565,0.00014896,2]
[406645336,1772025052929,-200.0,0.00014932,2]
[406645337,1772025052939,-2000.0,0.00015,2]
[406645338,1772025052949,-250.0,0.00015,2]
[406645339,1772025052959,-826.34,0.00015068,2]
[406645340,1772025052969,-265.34,0.00015068,2]
[406645341,1772025052979,-151.0,0.00015068,2]
[406645342,1772025052988,-151.0,0.00015068,2]
[406645343,1772025052998,-151.0,0.00015068,2]
[406645344,1772025053007,-151.0,0.00015068,2]
[406645345,1772025053017,-151.0,0.00015068,2]
[406645346,1772025053027,-151.0,0.00015068,2]
[406645347,1772025053037,-151.0,0.00015068,2]
[406645348,1772025053047,-151.0,0.00015068,2]
[406645349,1772025053065,-151.0,0.00015068,2]
[406645350,1772025053076,-201.787568,0.00015068,2]
[406645351,1772025053087,-388.28535324,0.00015101,2]
[406645352,1772025053110,-116.71464676,0.00015101,2]
[406645353,1772025053120,-322.79728336,0.00015309,2]
[406645354,1772025302086,300.0,7.877e-05,3]
[406645355,1772025443244,1493.0,0.000152,60]
[406645356,1772025443275,2163.52,0.000152,60]
[406645357,1772025587967,378.43,5.171e-05,2]
[406645358,1772025588376,378.43,5.353e-05,2]
[406645359,1772025588429,378.43,5.534e-05,2]
[406645360,1772025588832,378.43,5.716e-05,2]
[406645361,1772025589047,378.43,5.897e-05,2]
[406645362,1772025589258,378.43,6.079e-05,2]
[406645363,1772025589464,378.43,6.26e-05,2]
[406645364,1772025589665,378.43,6.441e-05,2]
[406645366,1772025842523,156.91,5.793e-05,2]
[406645368,1772026058009,2700.0,9e-05,3]
[406645389,1772026231656,-378.43,6.623e-05,2]
[406645390,1772026231666,-358.10999749,6.623e-05,2]
[406645391,1772026231677,-968.0495,6.623e-05,2]
[406645392,1772026231711,-2640.738165,6.623e-05,2]
[406645393,1772026231720,-250.0,6.623e-05,2]
[406645394,1772026231730,-207.0,6.623e-05,2]
[406645395,1772026231739,-378.43,6.804e-05,2]
[406645396,1772026231748,-378.43,6.986e-05,2]
[406645397,1772026231758,-378.43,7.167e-05,2]
[406645398,1772026231768,-250.0,7.285e-05,2]
[406645399,1772026231777,-250.0,7.285e-05,2]
[406645400,1772026231786,-1163.8105163,7.285e-05,2]
[406645401,1772026231797,-969.80549567,7.285e-05,2]
[406645402,1772026231808,-351.71222012,7.285e-05,2]
[406645403,1772026231829,-428.83006423,7.285e-05,2]
[406645404,1772026231839,-438.09831746,7.285e-05,2]
[406645405,1772026231852,-1647.74338622,7.285e-05,2]
[406645406,1772026231861,-378.43,7.349e-05,2]
[406645407,1772026231871,-578.20924308,7.425e-05,2]
[406645408,1772026231880,-693.3919763,7.496e-05,2]
[406645409,1772026231889,-277.35679052,7.496e-05,2]
[406645410,1772026231898,-150.99,7.501e-05,2]
[406645411,1772026231906,-348.21,7.501e-05,2]
[406645412,1772026231916,-999.99,7.501e-05,2]
[406645413,1772026231925,-9999.99,7.501e-05,2]
[406645414,1772026231934,-299.99,7.501e-05,2]
[406645415,1772026231943,-3750.6744202,7.501e-05,2]
[406645435,1772026237661,-639.31888652,7.501e-05,2]
[406645436,1772026237674,-5609.99669328,7.501e-05,2]
[406645437,1772026237685,-9999.99,7.501e-05,2]
[406645439,1772026237695,-4301.49,7.501e-05,2]
[406645441,1772026237704,-150.99,7.501e-05,2]
[406645442,1772026237715,-9999.99,7.501e-05,2]
[406645443,1772026237724,-378.43,7.53e-05,2]
[406645444,1772026237734,-3393.93,7.531e-05,2]
[406645445,1772026237744,-719.04747942,7.551e-05,2]
[406645446,1772026237753,-745.65223616,7.606e-05,2]
[406645447,1772026237763,-9592.37,7.613e-05,2]
[406645448,1772026237772,-773.2413689,7.661e-05,2]
[406645449,1772026237783,-378.43,7.712e-05,2]
[406645450,1772026237792,-801.85129955,7.716e-05,2]
[406645451,1772026237802,-831.51979763,7.771e-05,2]
[406645452,1772026237811,-600.0,7.8e-05,2]
[406645453,1772026237821,-862.28603014,7.826e-05,2]
[406645454,1772026237830,-894.19061326,7.881e-05,2]
[406645455,1772026237840,-378.43,7.893e-05,2]
[406645456,1772026237849,-1300.0,7.9e-05,2]
[406645457,1772026237859,-927.27566595,7.936e-05,2]
[406645458,1772026237869,-961.58486559,7.991e-05,2]
[406645459,1772026237878,-9460.07140544,8e-05,2]
[406645460,1772026237889,-2000.0,8e-05,2]
[406645461,1772026237899,-287.61899177,8.044e-05,2]
[406645462,1772026237909,-997.16350561,8.046e-05,2]
[406645463,1772026237919,-378.43,8.075e-05,2]
[406645464,1772026237928,-272.67490808,8.15e-05,2]
[406645465,1772026237938,-322.20637449,8.15e-05,2]
[406645466,1772026237948,-250544.09739716,8.151e-05,2]
[406645467,1772026237963,-1051.74850456,8.151e-05,2]
[406645468,1772026237979,-369.03590292,8.151e-05,2]
[406645469,1772026237992,-796.55986639,8.151e-05,2]
[406645470,1772026238005,-4932.1520001,8.151e-05,2]
[406645471,1772026238017,-2824.62425539,8.151e-05,2]
[406645472,1772026238030,-720.01455073,8.151e-05,2]
[406645473,1772026238042,-11132.66819799,8.151e-05,2]
[406645474,1772026238054,-915.68180285,8.151e-05,2]
[406645475,1772026238066,-11737.65924844,8.151e-05,2]
[406645476,1772026239816,-412.0,8.151e-05,2]
[406645478,1772026240063,-331.395,8.151e-05,2]
[406645482,1772026245545,-3574.88417432,8.151e-05,2]
[406645483,1772026245557,-921.20390586,8.151e-05,2]
[406645484,1772026245568,-881.45672485,8.151e-05,2]
[406645485,1772026245625,-557.01250743,8.151e-05,2]
[406645486,1772026245640,-2783.37,8.151e-05,2]
[406645487,1772026245652,-793.1136,8.151e-05,2]
[406645488,1772026245666,-161186.97442076,8.151e-05,2]
[406645489,1772026245678,-11721.78155764,8.151e-05,2]
[406645490,1772026245690,-602.0,8.151e-05,2]
[406645509,1772026245960,-445.5,8.151e-05,2]
[406645510,1772026245972,-265.60627094,8.151e-05,2]
[406645511,1772026245985,-1230.62946903,8.151e-05,2]
[406645512,1772026246044,-749.64000008,8.151e-05,2]
[406645513,1772026246055,-487.45793741,8.151e-05,2]
[406645514,1772026246067,-824.0,8.151e-05,2]
[406645515,1772026246078,-6947.05478971,8.151e-05,2]
[406645516,1772026246090,-596475.00000019,8.151e-05,2]
[406645517,1772026246115,-883.37371965,8.151e-05,2]
[406645518,1772026246130,-1123.42602351,8.151e-05,2]
[406645529,1772026608075,-1511.679,7.253e-05,2]
[406645530,1772026608096,-176.045,7.253e-05,2]
[406645531,1772026608117,-2812.276,7.253e-05,2]
[406645533,1772027244109,1400.0,9e-05,3]
[406645559,1772027431786,-300.0,6.8e-05,2]
[406645560,1772027431796,-250.0,6.836e-05,2]
[406645561,1772027431808,-300.0,6.872e-05,2]
[406645562,1772027431821,-150.0,6.872e-05,2]
[406645563,1772027431830,-1200.0,6.872e-05,2]
[406645564,1772027431839,-300.0,6.872e-05,2]
[406645565,1772027431848,-307.71196301,6.873e-05,2]
[406645566,1772027431857,-500.0,6.873e-05,2]
[406645567,1772027431866,-500.0,6.873e-05,2]
[406645568,1772027431874,-500.0,6.873e-05,2]
[406645569,1772027431883,-500.0,6.873e-05,2]
[406645570,1772027431892,-500.0,6.873e-05,2]
[406645571,1772027431902,-500.0,6.873e-05,2]
[406645572,1772027431911,-500.0,6.873e-05,2]
[406645573,1772027431920,-500.0,6.873e-05,2]
[406645574,1772027431929,-500.0,6.873e-05,2]
[406645575,1772027431939,-500.0,6.873e-05,2]
[406645576,1772027431949,-500.0,6.873e-05,2]
[406645577,1772027431958,-500.27479094,6.873e-05,2]
[406645578,1772027431968,-502.53914278,6.873e-05,2]
[406645579,1772027431978,-500.0,6.873e-05,2]
[406645580,1772027431987,-500.66363066,6.873e-05,2]
[406645582,1772027431996,-500.0,6.873e-05,2]
[406645584,1772027432006,-500.0,6.873e-05,2]
[406645585,1772027432015,-500.0,6.873e-05,2]
[406645587,1772027432024,-170.35126783,6.873e-05,2]
[406645589,1772027432034,-500.0,6.873e-05,2]
[406645591,1772027432043,-500.0,6.873e-05,2]
[406645592,1772027432052,-500.0,6.873e-05,2]
[406645593,1772027432061,-500.0,6.873e-05,2]
[406645594,1772027432072,-500.0,6.873e-05,2]
[406645595,1772027432081,-500.0,6.873e-05,2]
[406645596,1772027432090,-503.193534,6.873e-05,2]
[406645597,1772027432103,-250.0,6.889e-05,2]
[406645604,1772027432281,-700.0,6.9e-05,2]
[406645605,1772027432292,-753.88861969,6.925e-05,2]
[406645606,1772027438127,-583.72885539,6.925e-05,2]
[406645607,1772027438139,-925.48761476,6.925e-05,2]
[406645608,1772027438151,-6643.00491016,6.925e-05,2]
[406645610,1772027438160,-172.59364984,7e-05,2]
[406645614,1772027438187,-301.76454383,7e-05,2]
[406645631,1772027440297,-525.64180633,7e-05,2]
[406645632,1772027440307,-497.2623,7.055e-05,2]
[406645633,1772027440317,-1209.343,7.155e-05,2]
[406645634,1772027440327,-176.046,7.155e-05,2]
[406645635,1772027440336,-186.97680508,7.2e-05,2]
[406645636,1772027440346,-162.47658059,7.2e-05,2]
[406645637,1772027440356,-2524.04221237,7.2e-05,2]
[406645638,1772027440366,-2436.61356517,7.2e-05,2]
[406645639,1772027440376,-2000000.0,7.201e-05,2]
[406645640,1772027440385,-4579.44185519,7.253e-05,2]
[406645641,1772027440398,-2809.78143785,7.3e-05,2]
[406645642,1772027440407,-5439.43538071,7.3e-05,2]
[406645643,1772027440417,-1307.0,7.301e-05,2]
[406645644,1772027440426,-1000.0,7.421e-05,2]
[406645645,1772027440436,-1096.18978779,7.421e-05,2]
[406645646,1772027440445,-940.69410624,7.421e-05,2]
[406645647,1772027440454,-500.0,7.421e-05,2]
[406645648,1772027440464,-500.0,7.421e-05,2]
[406645649,1772027440473,-501.75629018,7.421e-05,2]
[406645650,1772027440482,-455.37248611,7.421e-05,2]
[406645651,1772027440492,-500.0,7.421e-05,2]
[406645652,1772027440501,-500.99420847,7.421e-05,2]
[406645653,1772027440511,-501.82753949,7.421e-05,2]
[406645654,1772027440520,-577.7227958,7.421e-05,2]
[406645655,1772027440529,-500.0,7.421e-05,2]
[406645656,1772027440538,-500.0,7.421e-05,2]
[406645657,1772027440547,-1000.0,7.421e-05,2]
[406645658,1772027440556,-514.56546432,7.421e-05,2]
[406645659,1772027440566,-500.0,7.421e-05,2]
[406645660,1772027440575,-500.0,7.421e-05,2]
[406645661,1772027440585,-250.0,7.48e-05,2]
[406645662,1772027440594,-193.0,7.48e-05,2]
[406645663,1772027440605,-255.0,7.559e-05,2]
[406645664,1772027440615,-1680.0,7.559e-05,2]
[406645665,1772027440625,-420.0,7.559e-05,2]
[406645666,1772027440634,-299.99,7.871e-05,2]
[406645667,1772027440644,-3663.07,7.871e-05,2]
[406645668,1772027440653,-999.99,7.871e-05,2]
[406645670,1772027440663,-9999.99,7.871e-05,2]
[406645672,1772027440672,-150.99,7.871e-05,2]
[406645673,1772027440681,-3500.55,7.871e-05,2]
[406645674,1772027440690,-500.0,7.968e-05,2]
[406645675,1772027440700,-1500.0,7.968e-05,2]
[406645676,1772027440709,-1846.6630499,8.142e-05,2]
[406645677,1772027440719,-3275.9349844,8.144e-05,2]
[406645678,1772027440728,-3498.246172,8.144e-05,2]
[406645679,1772027440737,-340366.7716796,8.144e-05,2]
[406645680,1772027440746,-4500.478526,8.178e-05,2]
[406645681,1772027440755,-500.0,8.219e-05,2]
[406645682,1772027440764,-405.42924705,8.219e-05,2]
[406645683,1772027440773,-500.0,8.219e-05,2]
[406645684,1772027440783,-500.0,8.219e-05,2]
[406645685,1772027440795,-500.0,8.219e-05,2]
[406645686,1772027440806,-371.02177,8.219e-05,2]
[406645687,1772027440817,-500.0,8.219e-05,2]
[406645688,1772027440826,-378.43,8.256e-05,2]
[406645689,1772027440842,-433.0,8.315e-05,2]
[406645690,1772027440852,-2351.0,8.315e-05,2]
[406645691,1772027440861,-587.0,8.315e-05,2]
[406645692,1772027440871,-3497.0,8.403e-05,2]
[406645693,1772027440880,-1340.0,8.403e-05,2]
[406645694,1772027440890,-1040.0,8.403e-05,2]
[406645695,1772027440899,-150.0,8.403e-05,2]
[406645696,1772027440908,-1277.0,8.403e-05,2]
[406645697,1772027440917,-1210.0,8.403e-05,2]
[406645698,1772027440927,-920.0,8.403e-05,2]
[406645699,1772027440935,-5405.0,8.403e-05,2]
[406645700,1772027440946,-5982.0,8.403e-05,2]
[406645701,1772027440955,-378.43,8.437e-05,2]
[406645702,1772027440965,-250.0,8.48e-05,2]
[406645703,1772027440975,-500.0,8.493e-05,2]
[406645704,1772027440984,-2000.0,8.516e-05,2]
[406645705,1772027440994,-378.43,8.619e-05,2]
[406645706,1772027441013,-155.0,8.9e-05,2]
[406645707,1772027441023,-2500.0,9.064e-05,2]
[406645708,1772027441033,-419.0,9.146e-05,2]
[406645709,1772027441043,-3292.0,9.146e-05,2]
[406645710,1772027441052,-823.0,9.146e-05,2]
[406645711,1772027441061,-268.18,9.191e-05,2]
[406645712,1772027441072,-150.0,9.205e-05,2]
[406645713,1772027441082,-150.0,9.26e-05,2]
[406645714,1772027441092,-1852.42,9.273e-05,2]
[406645715,1772027441103,-166.66,9.312e-05,2]
[406645716,1772027441116,-150.0,9.315e-05,2]
[406645717,1772027441125,-228.0,9.369e-05,2]
[406645718,1772027441136,-75946.092274,9.379e-05,2]
[406645719,1772027441147,-174.1674213,9.406e-05,2]
[406645720,1772027441157,-163.099199,9.431e-05,2]
[406645721,1772027441167,-268.18,9.465e-05,2]
[406645722,1772027441176,-3000.0,9.612e-05,2]
[406645723,1772027441188,-166.66,9.62e-05,2]
[406645724,1772027441199,-16945.8637317,9.655e-05,2]
[406645725,1772027441210,-268.19,9.739e-05,2]
[406645726,1772027441220,-155.0,9.79e-05,2]
[406645727,1772027441230,-166.66,9.927e-05,2]
[406645728,1772027441240,-6895.0,9.984e-05,2]
[406645729,1772027441250,-500.0,9.99e-05,2]
[406645730,1772027441260,-295.729192,0.0001,2]
[406645731,1772027441270,-151.0,0.0001,2]
[406645732,1772027441280,-151.0,0.0001,2]
[406645733,1772027441289,-151.0,0.0001,2]
[406645734,1772027441299,-151.0,0.0001,2]
[406645735,1772027441308,-151.0,0.0001,2]
[406645736,1772027441318,-151.0,0.0001,2]
[406645737,1772027441328,-151.0,0.0001,2]
[406645738,1772027441338,-151.0,0.0001,2]
[406645739,1772027441348,-151.0,0.0001,2]
[406645740,1772027441358,-151.0,0.0001,2]
[406645741,1772027441368,-151.0,0.0001,2]
[406645742,1772027441378,-151.0,0.0001,2]
[406645743,1772027441392,-176.95308782,0.0001,2]
[406645744,1772027441401,-200.0,0.0001,2]
[406645745,1772027441411,-151.0,0.0001,2]
[406645746,1772027441421,-151.0,0.0001,2]
[406645747,1772027441431,-151.0,0.0001,2]
[406645748,1772027441441,-151.0,0.0001,2]
[406645749,1772027441452,-151.0,0.0001,2]
[406645750,1772027441696,-151.0,0.0001,2]
[406645751,1772027441714,-151.0,0.0001,2]
[406645752,1772027441724,-151.0,0.0001,2]
[406645753,1772027441732,-151.0,0.0001,2]
[406645754,1772027441742,-151.0,0.0001,2]
[406645755,1772027441752,-151.0,0.0001,2]
[406645756,1772027441762,-443.12102313,0.0001,2]
[406645757,1772027441771,-1442.0,0.00010061,2]
[406645758,1772027441781,-1152.0,0.00010061,2]
[406645759,1772027441790,-166.66,0.00010234,2]
[406645760,1772027441800,-166.66,0.00010542,2]
[406645761,1772027441810,-227.98817059,0.00010548,2]
[406645762,1772027441820,-155.0,0.0001068,2]
[406645763,1772027441830,-166.66,0.00010849,2]
[406645764,1772027441839,-9759.67095662,0.000109,2]
[406645765,1772027441849,-9759.6709566,0.000109,2]
[406645766,1772027441859,-9759.6709566,0.000109,2]
[406645767,1772027441868,-150.0,0.00010959,2]
[406645768,1772027441878,-4822.56758978,0.00010999,2]
[406645769,1772027441888,-13557.19006663,0.00010999,2]
[406645770,1772027441897,-300.0,0.00011,2]
[406645771,1772027441910,-9458.15581866,0.00011,2]
[406645772,1772027441920,-1613.0,0.00011067,2]
[406645773,1772027441931,-500.0,0.00011076,2]
[406645774,1772027441940,-500.0,0.00011076,2]
[406645775,1772027441951,-500.0,0.00011076,2]
[406645776,1772027441960,-500.0,0.00011076,2]
[406645777,1772027441970,-500.0,0.00011076,2]
[406645778,1772027441980,-500.0,0.00011076,2]
[406645779,1772027441989,-500.0,0.00011076,2]
[406645780,1772027442000,-500.0,0.00011076,2]
[406645781,1772027442009,-500.0,0.00011076,2]
[406645782,1772027442019,-500.0,0.00011076,2]
[406645783,1772027442028,-500.0,0.00011076,2]
[406645784,1772027442038,-250.0,0.00011076,2]
[406645785,1772027442047,-250.0,0.00011076,2]
[406645786,1772027442057,-250.0,0.00011076,2]
[406645787,1772027442066,-250.0,0.00011076,2]
[406645788,1772027442075,-500.0,0.00011076,2]
[406645789,1772027442086,-250.0,0.00011076,2]
[406645790,1772027442095,-250.0,0.00011076,2]
[406645791,1772027442110,-500.0,0.00011076,2]
[406645792,1772027442122,-500.0,0.00011076,2]
[406645793,1772027442131,-500.0,0.00011076,2]
[406645794,1772027442142,-250.0,0.00011076,2]
[406645795,1772027442152,-261.91386714,0.00011076,2]
[406645796,1772027442161,-500.0,0.00011076,2]
[406645797,1772027442170,-250.0,0.00011076,2]
[406645798,1772027442181,-500.0,0.00011076,2]
[406645799,1772027442190,-250.0,0.00011076,2]
[406645800,1772027442200,-500.0,0.00011076,2]
[406645801,1772027442209,-250.0,0.00011076,2]
[406645802,1772027442219,-693.3919763,0.00011076,2]
[406645803,1772027442228,-500.0,0.00011076,2]
[406645804,1772027442238,-369.26331219,0.00011076,2]
[406645805,1772027442247,-277.35679052,0.00011076,2]
[406645806,1772027442256,-500.0,0.00011076,2]
[406645807,1772027442265,-500.0,0.00011076,2]
[406645808,1772027442275,-500.0,0.00011076,2]
[406645809,1772027442284,-250.0,0.00011076,2]
[406645810,1772027442293,-257.42149907,0.00011076,2]
[406645811,1772027442303,-9671.79254673,0.00011099,2]
[406645812,1772027442314,-9671.79254672,0.00011099,2]
[406645813,1772027442323,-9671.79254672,0.00011099,2]
[406645814,1772027442332,-9671.79254672,0.00011099,2]
[406645815,1772027442342,-8432.35978208,0.00011099,2]
[406645816,1772027442352,-8432.35978201,0.00011099,2]
[406645817,1772027442361,-8432.35978201,0.00011099,2]
[406645818,1772027442371,-8432.35978201,0.00011099,2]
[406645819,1772027442380,-151.0,0.00011099,2]
[406645820,1772027442391,-1800.0,0.000111,2]
[406645821,1772027442401,-719.04747942,0.00011131,2]
[406645822,1772027442410,-179.91851262,0.00011141,2]
[406645823,1772027442420,-745.65223616,0.00011186,2]
[406645824,1772027442430,-3908.34,0.00011233,2]
[406645825,1772027442439,-773.2413689,0.00011241,2]
[406645826,1772027442450,-801.85129955,0.00011296,2]
[406645827,1772027442460,-831.51979763,0.00011351,2]
[406645828,1772027442469,-3497.0,0.00011403,2]
[406645829,1772027442479,-1340.0,0.00011403,2]
[406645830,1772027442489,-1040.0,0.00011403,2]
[406645831,1772027442498,-1277.0,0.00011403,2]
[406645832,1772027442510,-1210.0,0.00011403,2]
[406645833,1772027442522,-920.0,0.00011403,2]
[406645834,1772027442532,-5405.0,0.00011403,2]
[406645835,1772027442542,-5982.0,0.00011403,2]
[406645836,1772027442552,-862.28603014,0.00011406,2]
[406645837,1772027442561,-894.19061326,0.00011461,2]
[406645838,1772027442571,-161.67,0.00011466,2]
[406645839,1772027442581,-927.27566595,0.00011516,2]
[406645840,1772027442592,-961.58486559,0.00011571,2]
[406645841,1772027442601,-287.61899177,0.00011624,2]
[406645842,1772027442611,-997.16350561,0.00011626,2]
[406645843,1772027442621,-300.0,0.00011657,4]
[406645844,1772027442631,-9759.6709566,0.00011759,2]
[406645845,1772027442640,-924.0,0.000119,2]
[406645846,1772027442649,-8432.35978201,0.00011918,2]
[406645847,1772027442659,-9671.79254672,0.00011929,2]
[406645848,1772027442669,-1965.0,0.00012,3]
[406645849,1772027442679,-23801.11,0.00012087,2]
[406645850,1772027442688,-9999.99,0.00012087,2]
[406645851,1772027442698,-298.26089446,0.00012172,2]
[406645852,1772027442717,-2258.0,0.00012173,2]